bitfinex-derivatives/quotes_BTCF0:USTF0_20260119
["timestamp","ask_amount","ask_price","bid_price","bid_amount"]
[1768856892894,0.010727,93270.0,93269.0,0.09652]
[1768856893994,0.00016079,93281.0,93267.0,7.9e-07]
[1768856893995,0.10112498,93279.0,93267.0,0.09652]
[1768856894196,0.010727,93268.0,93266.0,0.09652]
[1768856894494,0.010727,93268.0,93265.0,0.09652]
[1768856894695,0.010727,93268.0,93264.0,0.09652]
[1768856895091,0.09039898,93279.0,93264.0,0.09652]
[1768856895092,0.010727,93269.0,93264.0,0.09652]
[1768856896700,0.09039898,93279.0,93264.0,0.09652]
[1768856896701,0.010727,93272.0,93264.0,0.09652]
[1768856897001,0.010726,93276.0,93264.0,0.09652]
[1768856897294,0.010725,93288.0,93274.0,0.02871661]
[1768856897797,0.010725,93284.0,93274.0,0.02871661]
[1768856897991,0.010725,93284.0,93275.0,0.09652]
[1768856898191,0.10112298,93297.0,93275.0,0.09652]
[1768856898393,0.010725,93285.0,93275.0,0.09652]
[1768856898701,0.10112298,93297.0,93275.0,0.09652]
[1768856898999,0.09039898,93297.0,93275.0,0.09652]
[1768856899200,0.010725,93287.0,93275.0,0.09652]
[1768856903798,0.010726,93282.0,93275.0,0.09652]
[1768856904594,0.010726,93280.0,93275.0,0.09652]
[1768856904795,0.010725,93290.0,93275.0,0.09652]
[1768856905405,0.010726,93282.0,93275.0,0.09652]
[1768856906110,0.09386719,93279.0,93270.0,0.09635921]
[1768856906405,0.09386719,93279.0,93269.0,7.9e-07]
[1768856906406,0.010727,93270.0,93264.0,0.09652]
[1768856906610,0.010727,93267.0,93262.0,0.09652]
[1768856906908,0.010727,93270.0,93262.0,0.09652]
[1768856907204,0.010727,93270.0,93252.0,0.35607485]
[1768856907205,0.010728,93265.0,93260.0,0.09652]
[1768856907411,0.010728,93265.0,93259.0,0.09652]
[1768856907605,0.09386719,93273.0,93254.0,0.09652]
[1768856907810,0.010728,93261.0,93254.0,0.09652]
[1768856908010,0.010728,93264.0,93254.0,0.09652]
[1768856908210,0.010728,93265.0,93254.0,0.09652]
[1768856909612,0.00016079,93267.0,93254.0,0.09652]
[1768856909799,0.010728,93264.0,93254.0,0.09652]
[1768856910305,0.010728,93263.0,93254.0,0.09652]
[1768856912210,0.01088779,93267.0,93254.0,0.09652]
[1768856916509,0.010728,93265.0,93254.0,0.09652]
[1768856918817,0.00016079,93267.0,93254.0,0.09652]
[1768856919118,0.010727,93266.0,93254.0,0.09652]
[1768856922417,0.010728,93257.0,93252.0,0.01651485]
[1768856922613,0.010728,93260.0,93249.0,0.00235929]
[1768856922912,0.00016079,93267.0,93256.0,0.010729]
[1768856923120,0.010725,93290.0,93258.0,0.02314448]
[1768856923121,0.09864553,93280.0,93258.0,0.02314448]
[1768856923423,0.03851232,93279.0,93264.0,0.010728]
[1768856923609,0.010726,93279.0,93264.0,0.010728]
[1768856924318,0.010726,93279.0,93265.0,0.010727]
[1768856927822,0.010727,93273.0,93259.0,0.010728]
[1768856930626,0.010726,93275.0,93260.0,0.010728]
[1768856931125,0.10937153,93278.0,93262.0,0.010728]
[1768856932027,0.09864553,93278.0,93265.0,0.010728]
[1768856932216,0.09864553,93278.0,93257.0,0.02485522]
[1768856933016,0.09864553,93278.0,93264.0,0.010728]
[1768856935420,0.09864553,93278.0,93268.0,0.17949144]
[1768856935615,0.09650258,93283.0,93271.0,0.010727]
[1768856935823,0.10722858,93282.0,93270.0,0.17949144]
[1768856936022,0.11721611,93282.0,93265.0,0.010727]
[1768856936223,0.11721611,93282.0,93260.0,0.17949144]
[1768856936224,0.09650258,93280.0,93262.0,0.010728]
[1768856936415,0.10722858,93280.0,93267.0,0.00016079]
[1768856939525,0.11721611,93280.0,93267.0,0.00016079]
[1768856939833,0.11721611,93280.0,93267.0,0.01088779]
[1768856942035,0.10649011,93280.0,93268.0,0.010727]
[1768856942233,0.10649011,93280.0,93270.0,0.010727]
[1768856943431,0.10649011,93280.0,93267.0,0.01088779]
[1768856943633,0.10649011,93278.0,93267.0,0.01088779]
[1768856944931,0.00998753,93275.0,93261.0,0.010728]
[1768856945228,0.00998753,93275.0,93256.0,0.09652]
[1768856945229,0.10649011,93272.0,93260.0,0.17949144]
[1768856945429,0.09650258,93272.0,93264.0,0.010728]
[1768856945935,0.09650258,93272.0,93265.0,0.010727]
[1768856948335,0.09650258,93272.0,93266.0,0.010727]
[1768856965153,0.09650258,93272.0,93267.0,0.010727]
[1768856972055,0.10127889,93270.0,93262.0,0.107248]
[1768856973360,0.10127889,93270.0,93263.0,0.010728]
[1768856974353,0.10127889,93270.0,93264.0,0.010728]
[1768856980764,0.10127889,93270.0,93261.0,0.107248]
[1768856981068,0.10127889,93270.0,93263.0,0.010728]
[1768856981366,0.10127889,93270.0,93261.0,0.107248]
[1768856983265,0.10582093,93264.0,93260.0,0.09656]
[1768856983460,0.00930001,93263.0,93256.0,0.09656]
[1768856983661,0.09652092,93263.0,93254.0,0.010729]
[1768856983856,0.09652092,93268.0,93260.0,0.010728]
[1768856987554,0.09652092,93268.0,93253.0,0.09656]
[1768856987757,0.09652092,93268.0,93254.0,0.010729]
[1768856987954,0.09652092,93268.0,93253.0,0.09656]
[1768856988968,0.0198378,93263.0,93250.0,0.010729]
[1768856990066,0.0198378,93263.0,93250.0,0.02425016]
[1768856990665,0.010728,93266.0,93250.0,0.02425016]
[1768856990967,0.010728,93265.0,93250.0,0.02425016]
[1768856991171,0.01957933,93264.0,93250.0,0.01352116]
[1768856991370,0.01957933,93264.0,93249.0,0.00235929]
[1768856992066,0.010728,93263.0,93249.0,0.00235929]
[1768856993474,0.010728,93263.0,93249.0,0.01560355]
[1768856994872,0.010728,93263.0,93249.0,0.02633255]
[1768856995776,0.01957933,93264.0,93249.0,0.01560355]
[1768856996769,0.01957933,93264.0,93251.0,0.010729]
[1768856997377,0.01957933,93264.0,93249.0,0.01560355]
[1768856997679,0.010727,93268.0,93254.0,0.010729]
[1768857001482,0.09656,93269.0,93256.0,0.010728]
[1768857001683,0.09656,93269.0,93254.0,0.010729]
[1768857001869,0.010727,93268.0,93251.0,0.010729]
[1768857002783,0.010727,93268.0,93252.0,0.010729]
[1768857003784,0.02963864,93270.0,93249.0,0.10700426]
[1768857003979,0.107287,93269.0,93251.0,0.010729]
[1768857004481,0.010727,93269.0,93252.0,0.010729]
[1768857004783,0.107287,93269.0,93252.0,0.010729]
[1768857005684,0.107287,93269.0,93253.0,0.010729]
[1768857006889,0.010727,93267.0,93253.0,0.010729]
[1768857008283,0.107287,93269.0,93253.0,0.010729]
[1768857009685,0.010728,93266.0,93251.0,0.010729]
[1768857009881,0.010727,93268.0,93251.0,0.010729]
[1768857010183,0.010727,93268.0,93252.0,0.010729]
[1768857010389,0.09656,93269.0,93253.0,0.010729]
[1768857012000,0.010727,93268.0,93251.0,0.010729]
[1768857012193,0.010727,93268.0,93252.0,0.010729]
[1768857019696,0.09656,93269.0,93249.0,0.10700426]
[1768857019896,0.09656,93269.0,93250.0,0.09140071]
[1768857020200,0.107287,93269.0,93253.0,0.010729]
[1768857020401,0.010727,93268.0,93253.0,0.010729]
[1768857021309,0.09656,93269.0,93255.0,0.010729]
[1768857021907,0.09656,93269.0,93250.0,0.09140071]
[1768857023208,0.09656,93269.0,93252.0,0.010729]
[1768857024407,0.010727,93268.0,93252.0,0.010729]
[1768857024802,0.010727,93270.0,93250.0,0.09140071]
[1768857025009,0.09656,93269.0,93256.0,0.010729]
[1768857025910,0.09656,93269.0,93253.0,0.010729]
[1768857026505,0.010728,93266.0,93251.0,0.010729]
[1768857028510,0.010728,93266.0,93252.0,0.010729]
[1768857028911,0.107287,93269.0,93252.0,0.010729]
[1768857031114,0.010727,93267.0,93252.0,0.010729]
[1768857032816,0.09656,93269.0,93250.0,0.10212971]
[1768857033318,0.010728,93266.0,93251.0,0.010729]
[1768857033916,0.09656,93269.0,93250.0,0.09140071]
[1768857034216,0.09656,93269.0,93249.0,0.01560355]
[1768857034217,0.010728,93259.0,93249.0,0.00235929]
[1768857035217,0.010728,93261.0,93248.0,0.01324293]
[1768857035411,0.00016079,93263.0,93249.0,0.010729]
[1768857036413,0.010728,93262.0,93249.0,0.010729]
[1768857039122,0.010728,93262.0,93246.0,0.01073]
[1768857039514,0.00016079,93263.0,93246.0,0.01073]
[1768857040313,0.010728,93260.0,93248.0,0.010729]
[1768857041116,0.010728,93260.0,93246.0,0.01073]
[1768857041314,0.010728,93260.0,93248.0,0.010729]
[1768857042420,0.00016079,93263.0,93249.0,0.09509285]
[1768857042421,0.01088879,93263.0,93249.0,0.09509285]
[1768857043621,0.01088879,93263.0,93249.0,0.10582185]
[1768857045322,0.01088879,93263.0,93250.0,0.010729]
[1768857045523,0.00016079,93263.0,93250.0,0.010729]
[1768857046425,0.010728,93262.0,93250.0,0.010729]
[1768857060637,0.010728,93261.0,93250.0,0.010729]
[1768857060834,0.010728,93258.0,93249.0,0.09509285]
[1768857062635,0.00016079,93263.0,93249.0,0.09509285]
[1768857062636,0.17956417,93260.0,93249.0,0.09509285]
[1768857062840,0.17956417,93260.0,93245.0,0.12270672]
[1768857063040,0.010729,93253.0,93245.0,0.01345233]
[1768857063343,0.010729,93253.0,93244.0,0.0989194]
[1768857064034,0.17956417,93254.0,93244.0,0.0157129]
[1768857064238,0.19029317,93250.0,93241.0,0.01357252]
[1768857064533,0.19029317,93250.0,93237.0,0.107291]
[1768857066029,0.17956417,93250.0,93237.0,0.107291]
[1768857067339,0.00014985,93249.0,93237.0,0.10993186]
[1768857067536,0.01087985,93248.0,93237.0,0.10993186]
[1768857067839,0.01073,93246.0,93237.0,0.01337186]
[1768857068043,0.00014985,93246.0,93232.0,7.848e-05]
[1768857068443,0.01073,93243.0,93232.0,7.848e-05]
[1768857068637,0.00014985,93243.0,93232.0,7.848e-05]
[1768857068838,0.01073,93241.0,93232.0,7.848e-05]
[1768857069034,0.00014985,93243.0,93232.0,7.848e-05]
[1768857069638,0.00014907,93241.0,93224.0,0.00235991]
[1768857070143,0.17956417,93240.0,93231.0,0.010731]
[1768857070741,7.789e-05,93239.0,93231.0,0.010731]
[1768857071243,7.789e-05,93239.0,93229.0,0.01541292]
[1768857076745,7.789e-05,93239.0,93231.0,0.010731]
[1768857076950,7.789e-05,93239.0,93229.0,0.12466731]
[1768857077253,7.789e-05,93239.0,93229.0,0.11536278]
[1768857078360,7.789e-05,93239.0,93230.0,0.010732]
[1768857079450,7.789e-05,93239.0,93229.0,0.11536278]
[1768857081342,7.789e-05,93239.0,93231.0,0.010731]
[1768857087451,7.789e-05,93239.0,93229.0,0.12451614]
[1768857088353,7.789e-05,93239.0,93235.0,0.09136708]
[1768857088552,0.00016088,93244.0,93235.0,0.09136708]
[1768857089460,0.00016088,93244.0,93237.0,0.010731]
[1768857090652,0.00016088,93244.0,93235.0,0.09136708]
[1768857090958,0.01089088,93244.0,93235.0,0.09136708]
[1768857093562,0.09656,93243.0,93235.0,0.09136708]
[1768857094846,0.01073,93241.0,93235.0,0.09136708]
[1768857095048,0.01073,93241.0,93229.0,0.02456628]
[1768857095247,0.01073,93241.0,93230.0,0.010732]
[1768857095657,0.01073,93242.0,93230.0,0.010732]
[1768857097550,0.01073,93240.0,93229.0,0.11593336]
[1768857099263,0.01073,93240.0,93230.0,0.10052044]
[1768857100158,0.09656,93243.0,93230.0,0.10052044]
[1768857101060,0.10729,93243.0,93230.0,0.11125144]
[1768857101266,0.10729,93243.0,93231.0,0.10408499]
[1768857103062,0.09656,93243.0,93231.0,0.10408499]
[1768857103466,0.17956417,93241.0,93231.0,0.10408499]
[1768857104567,0.010731,93240.0,93231.0,0.09477955]
[1768857105566,0.01073,93242.0,93231.0,0.09477955]
[1768857105865,0.17956417,93241.0,93231.0,0.10408499]
[1768857106172,0.01073,93242.0,93231.0,0.10408499]
[1768857107867,0.09656,93243.0,93229.0,0.01541292]
[1768857108071,0.17956417,93241.0,93229.0,0.11949791]
[1768857108276,0.09656,93243.0,93230.0,0.10408499]
[1768857108973,0.09656,93243.0,93231.0,0.00930544]
[1768857109175,0.09656,93243.0,93231.0,0.10408499]
[1768857109474,0.09656,93243.0,93232.0,0.10408499]
[1768857109668,0.01073,93241.0,93232.0,0.10408499]
[1768857109875,0.09656,93243.0,93232.0,0.10408499]
[1768857110474,0.01073,93242.0,93232.0,0.10408499]
[1768857112478,0.19029417,93242.0,93232.0,0.10408499]
[1768857114866,0.01073,93242.0,93232.0,0.10408499]
[1768857118177,0.01073,93240.0,93232.0,0.09477955]
[1768857118577,0.01073,93240.0,93232.0,0.10455794]
[1768857119169,0.01073,93243.0,93232.0,0.10455794]
[1768857119481,0.09672088,93244.0,93232.0,0.10455794]
[1768857119768,0.01073,93241.0,93232.0,0.10455794]
[1768857121571,0.09672088,93244.0,93232.0,0.10455794]
[1768857121772,0.09672088,93244.0,93239.0,0.10791299]
[1768857121977,0.00519301,93244.0,93239.0,0.0981346]
[1768857122172,0.00837906,93247.0,93239.0,0.0981346]
[1768857122562,0.01910906,93247.0,93239.0,0.0981346]
[1768857122766,0.09515998,93267.0,93245.0,0.01073]
[1768857122963,0.12158264,93263.0,93246.0,0.11864299]
[1768857123179,0.02502264,93262.0,93248.0,0.10791299]
[1768857123473,0.09656,93263.0,93248.0,0.10791299]
[1768857123474,0.010728,93260.0,93248.0,0.10791299]
[1768857123772,0.10205609,93272.0,93252.0,0.0981346]
[1768857123773,0.02502264,93259.0,93252.0,0.0981346]
[1768857123973,0.1096469,93264.0,93253.0,0.00977839]
[1768857124180,0.0989189,93264.0,93248.0,0.010729]
[1768857124781,0.0023589,93264.0,93248.0,0.010729]
[1768857124980,0.0023589,93264.0,93250.0,0.010729]
[1768857125177,0.0023589,93264.0,93249.0,0.010729]
[1768857125981,0.0023589,93264.0,93253.0,0.0981346]
[1768857126183,0.0023589,93264.0,93254.0,0.00977839]
[1768857126380,0.0023589,93264.0,93254.0,0.02050739]
[1768857126572,0.2004,93279.0,93261.0,0.0981346]
[1768857126770,0.010727,93270.0,93261.0,0.10791299]
[1768857126985,0.010727,93266.0,93255.0,0.10791299]
[1768857129786,0.09656,93271.0,93255.0,0.10791299]
[1768857129787,0.01308578,93269.0,93255.0,0.11864199]
[1768857129986,0.01308578,93269.0,93258.0,0.00977839]
[1768857134393,0.010727,93267.0,93258.0,0.00977839]
[1768857136784,0.00235878,93269.0,93258.0,0.00977839]
[1768857137989,0.00235878,93269.0,93260.0,0.10791299]
[1768857138192,0.00235878,93269.0,93261.0,0.10791299]
[1768857138390,0.00235878,93269.0,93261.0,0.0981346]
[1768857140796,0.010727,93268.0,93261.0,0.0981346]
[1768857141091,0.09515998,93266.0,93244.0,0.0023594]
[1768857141299,0.010729,93251.0,93232.0,0.010731]
[1768857141495,0.00747532,93252.0,93233.0,0.10791299]
[1768857141690,0.010729,93249.0,93234.0,0.00977839]
[1768857141890,0.010729,93249.0,93235.0,0.10791299]
[1768857142089,0.010729,93249.0,93236.0,0.00977839]
[1768857142295,0.107289,93253.0,93236.0,0.10791299]
[1768857142698,0.00016088,93251.0,93236.0,0.10791299]
[1768857143201,0.010729,93250.0,93236.0,0.10791299]
[1768857144096,0.010729,93250.0,93237.0,0.10140362]
[1768857144901,0.01073,93247.0,93237.0,0.10140362]
[1768857145298,0.01073,93244.0,93237.0,0.10140362]
[1768857145495,0.01073,93244.0,93237.0,0.09198119]
[1768857147103,0.01073,93244.0,93237.0,1.9e-07]
[1768857147310,0.01073,93244.0,93233.0,0.00942243]
[1768857147611,0.010731,93238.0,93233.0,4.3e-07]
[1768857147804,0.010731,93234.0,93224.0,0.00235991]
[1768857149408,0.09675101,93236.0,93224.0,9.1e-07]
[1768857149605,0.00989019,93233.0,93210.0,0.09198119]
[1768857149805,0.010732,93226.0,93213.0,0.00942243]
[1768857150011,0.010732,93226.0,93214.0,0.00942243]
[1768857151919,0.010732,93224.0,93213.0,0.09198119]
[1768857155111,0.010732,93227.0,93215.0,0.10140362]
[1768857155416,0.00016088,93229.0,93218.0,0.00942243]
[1768857156511,0.010732,93226.0,93218.0,0.00942243]
[1768857156811,0.00016088,93229.0,93218.0,0.00942243]
[1768857157008,0.010732,93226.0,93218.0,0.00942243]
[1768857159315,0.010732,93226.0,93217.0,0.09198119]
[1768857159815,0.010732,93227.0,93217.0,0.09198119]
[1768857161518,0.00016088,93229.0,93217.0,0.10184718]
[1768857161816,0.00016088,93229.0,93210.0,0.01423251]
[1768857161817,0.00016088,93229.0,93218.0,0.09998471]
[1768857162014,0.00016088,93229.0,93219.0,0.09998471]
[1768857162522,0.00016088,93229.0,93208.0,0.010734]
[1768857162523,0.010736,93189.0,93157.0,0.01074]
[1768857162712,0.0966,93188.0,93151.0,0.0966]
[1768857162917,0.010737,93185.0,93167.0,0.010739]
[1768857163220,0.010737,93184.0,93159.0,0.02515249]
[1768857163514,0.00011255,93183.0,93159.0,0.02515249]
[1768857163719,0.010737,93182.0,93159.0,0.02515249]
[1768857164118,0.00011255,93183.0,93159.0,0.02515249]
[1768857164310,0.010738,93178.0,93159.0,0.01441249]
[1768857164506,0.010738,93176.0,93172.0,0.09011872]
[1768857166021,0.00011255,93183.0,93159.0,0.01441249]
[1768857166022,0.010738,93173.0,93169.0,3e-08]
[1768857166212,0.010738,93171.0,93169.0,3e-08]
[1768857166415,0.01074,93155.0,93149.0,8.3e-07]
[1768857166623,0.01074,93158.0,93150.0,0.00986599]
[1768857166823,0.01074,93155.0,93149.0,6e-07]
[1768857167121,0.0966,93164.0,93145.0,9.9e-07]
[1768857167513,0.0966,93164.0,93133.0,0.0966]
[1768857167514,0.010741,93151.0,93144.0,9.2e-07]
[1768857167709,0.00012827,93150.0,93144.0,9.2e-07]
[1768857169423,0.010741,93149.0,93142.0,6.4e-07]
[1768857169625,0.0090946,93147.0,93104.0,0.00236295]
[1768857169811,0.010745,93113.0,93104.0,9.5e-07]
[1768857170220,0.010745,93114.0,93104.0,9.5e-07]
[1768857170717,0.0090946,93136.0,93104.0,9.5e-07]
[1768857170921,0.09664,93135.0,93104.0,9.5e-07]
[1768857171126,0.19519429,93135.0,93104.0,9.5e-07]
[1768857171321,0.09855429,93134.0,93104.0,9.5e-07]
[1768857171718,0.09865052,93133.0,93107.0,0.00986599]
[1768857172029,0.09865052,93133.0,93109.0,0.00986599]
[1768857172218,0.010744,93123.0,93109.0,0.00986599]
[1768857172529,0.010744,93123.0,93111.0,0.00016107]
[1768857172727,9.623e-05,93133.0,93114.0,0.09998471]
[1768857173023,9.623e-05,93133.0,93111.0,0.00016107]
[1768857173024,0.01083923,93133.0,93119.0,0.00984035]
[1768857173226,0.010743,93130.0,93120.0,0.09664]
[1768857174115,9.623e-05,93133.0,93120.0,0.09664]
[1768857175527,0.010743,93132.0,93120.0,0.09664]
[1768857175929,9.623e-05,93133.0,93121.0,0.00984035]
[1768857178426,0.010743,93132.0,93121.0,0.00984035]
[1768857180625,0.010743,93132.0,93120.0,0.09664]
[1768857180626,0.010742,93142.0,93133.0,0.09325518]
[1768857180823,0.00987383,93158.0,93134.0,0.09668]
[1768857180824,0.10094802,93151.0,93134.0,0.09668]
[1768857181031,0.010742,93136.0,93115.0,0.09325483]
[1768857181229,0.010742,93136.0,93116.0,0.18993483]
[1768857181425,0.09107419,93139.0,93117.0,0.09325483]
[1768857181632,0.010743,93128.0,93116.0,0.09684107]
[1768857181832,0.00838157,93128.0,93116.0,0.09684107]
[1768857182233,0.010743,93132.0,93116.0,0.09684107]
[1768857182427,0.010743,93130.0,93116.0,0.09684107]
[1768857182635,0.10094802,93136.0,93116.0,0.09684107]
[1768857182836,0.010743,93134.0,93116.0,0.09684107]
[1768857183037,0.010743,93129.0,93116.0,0.09684107]
[1768857183535,0.010744,93125.0,93116.0,0.09668007]
[1768857184227,0.010743,93128.0,93116.0,0.09668007]
[1768857186341,0.010743,93128.0,93116.0,0.09687619]
[1768857186926,0.00016107,93132.0,93116.0,0.09687619]
[1768857187139,0.010743,93128.0,93116.0,0.09687619]
[1768857190937,0.010743,93128.0,93116.0,0.09668007]
[1768857191843,0.010743,93131.0,93116.0,0.09668007]
[1768857192045,0.010743,93131.0,93116.0,0.1899349]
[1768857193043,0.18008063,93130.0,93116.0,0.1899349]
[1768857193948,0.00016107,93132.0,93116.0,0.1899349]
[1768857194242,0.18008063,93130.0,93116.0,0.1899349]
[1768857194447,0.010744,93127.0,93116.0,0.1899349]
[1768857197849,0.18008063,93130.0,93116.0,0.1899349]
[1768857198048,0.010743,93127.0,93116.0,0.1899349]
[1768857199149,0.00016107,93132.0,93116.0,0.1899349]
[1768857199347,0.18008063,93130.0,93116.0,0.1899349]
[1768857199749,0.010743,93129.0,93116.0,0.1899349]
[1768857200652,0.18008063,93130.0,93117.0,0.09325483]
[1768857201150,0.19082363,93130.0,93117.0,0.09325483]
[1768857201550,0.010744,93126.0,93117.0,0.09325483]
[1768857202955,0.010743,93129.0,93117.0,0.09325483]
[1768857204355,0.18008063,93130.0,93117.0,0.09325483]
[1768857204547,0.01090407,93132.0,93117.0,0.09325483]
[1768857204748,0.18008063,93130.0,93117.0,0.09325483]
[1768857205648,0.010743,93129.0,93117.0,0.09325483]
[1768857206055,0.010743,93129.0,93124.0,0.00236244]
[1768857206245,0.18008063,93130.0,93124.0,0.00236244]
[1768857206447,0.01090407,93132.0,93124.0,0.00236244]
[1768857207351,0.00016107,93132.0,93124.0,0.00236244]
[1768857210757,0.00016107,93132.0,93124.0,0.0953379]
[1768857212862,0.010741,93144.0,93128.0,0.09297546]
[1768857213050,0.010741,93144.0,93117.0,0.010744]
[1768857213051,0.09458719,93110.0,93104.0,0.08668]
[1768857213249,0.09458719,93098.0,93081.0,0.0026]
[1768857213560,0.18008063,93094.0,93081.0,0.02491506]
[1768857213859,0.09458719,93098.0,93086.0,0.07668077]
[1768857214258,0.010744,93124.0,93094.0,0.00928818]
[1768857214448,0.010745,93114.0,93095.0,0.00928818]
[1768857215150,0.010745,93117.0,93096.0,0.00928818]
[1768857215366,0.18008063,93110.0,93096.0,0.00928818]
[1768857215866,0.18008063,93110.0,93096.0,0.08596895]
[1768857216468,0.010745,93111.0,93097.0,0.07668077]
[1768857216652,0.18008063,93110.0,93098.0,0.09668]
[1768857217256,0.010745,93112.0,93098.0,0.09668]
[1768857217454,0.18008063,93110.0,93098.0,0.09668]
[1768857218154,0.18008063,93110.0,93098.0,0.17336077]
[1768857218556,0.09458719,93114.0,93099.0,0.00928818]
[1768857219066,0.010745,93113.0,93099.0,0.00928818]
[1768857219266,0.010745,93111.0,93099.0,0.00928818]
[1768857219467,0.10533219,93114.0,93099.0,0.00928818]
[1768857219667,0.18008063,93110.0,93099.0,0.00928818]
[1768857219867,0.010746,93108.0,93098.0,0.09668]
[1768857220062,0.010746,93108.0,93098.0,0.17336077]
[1768857220258,0.010746,93108.0,93099.0,0.07668077]
[1768857220464,0.010746,93108.0,93100.0,0.07668077]
[1768857220670,0.09458719,93110.0,93100.0,0.07668077]
[1768857220966,0.27466782,93110.0,93098.0,0.09668]
[1768857221162,0.09458719,93110.0,93099.0,0.07668077]
[1768857221366,0.27466782,93110.0,93099.0,0.07668077]
[1768857222158,0.27466782,93110.0,93098.0,0.09668]
[1768857222354,0.27466782,93110.0,93099.0,0.07668077]
[1768857222758,0.27466782,93110.0,93100.0,0.07668077]
[1768857222968,0.27466782,93110.0,93099.0,0.07668077]
[1768857223168,0.27466782,93110.0,93100.0,0.07668077]
[1768857223368,0.27466782,93110.0,93099.0,0.07668077]
[1768857223866,0.27466782,93110.0,93100.0,0.07668077]
[1768857224056,0.27466782,93110.0,93099.0,0.07668077]
[1768857224253,0.27466782,93110.0,93100.0,0.35292]
[1768857224564,0.27466782,93110.0,93101.0,1.27088]
[1768857224964,0.18008063,93110.0,93101.0,1.34756077]
[1768857225262,0.096387,93116.0,93104.0,0.07668077]
[1768857225468,0.096387,93116.0,93101.0,1.28015867]
[1768857225668,0.010745,93115.0,93101.0,1.28015867]
[1768857226064,0.010745,93115.0,93101.0,1.35683944]
[1768857226265,0.010745,93115.0,93102.0,0.07668077]
[1768857227265,0.010745,93115.0,93101.0,1.28015867]
[1768857227466,0.010745,93115.0,93102.0,0.07668077]
[1768857227669,0.010744,93119.0,93104.0,0.08595944]
[1768857227865,0.010744,93119.0,93104.0,0.00927867]
[1768857228061,0.096387,93127.0,93110.0,0.00927867]
[1768857228274,0.096387,93127.0,93111.0,0.00927867]
[1768857228469,0.010744,93124.0,93112.0,0.00927867]
[1768857228668,0.19082463,93122.0,93113.0,0.09672]
[1768857228862,0.19082463,93122.0,93114.0,1.42568]
[1768857229063,0.18008063,93122.0,93115.0,0.09672]
[1768857229258,0.00838269,93125.0,93115.0,0.09672]
[1768857229567,0.18008063,93130.0,93116.0,0.07668077]
[1768857229766,0.18008063,93130.0,93115.0,0.10599867]
[1768857229767,0.010744,93127.0,93115.0,0.10599867]
[1768857230065,0.27646763,93130.0,93115.0,6.7e-07]
[1768857230267,0.096387,93129.0,93116.0,1.42568]
[1768857230467,0.096387,93129.0,93117.0,0.09672]
[1768857230668,0.010743,93129.0,93118.0,0.07668077]
[1768857230974,0.010743,93129.0,93119.0,0.07668077]
[1768857231271,0.010743,93129.0,93117.0,0.09672]
[1768857231272,0.010743,93129.0,93120.0,0.07668077]
[1768857231473,0.010743,93129.0,93119.0,0.07668077]
[1768857231961,0.010743,93129.0,93120.0,0.07668077]
[1768857232166,0.010743,93129.0,93119.0,0.07668077]
[1768857232374,0.010743,93128.0,93119.0,0.07668077]
[1768857232575,0.010743,93128.0,93120.0,0.07668077]
[1768857233077,0.010743,93128.0,93121.0,0.07668077]
[1768857233271,0.010743,93128.0,93120.0,0.07668077]
[1768857233877,0.010743,93128.0,93117.0,0.09672]
[1768857234075,0.010743,93128.0,93120.0,0.07668077]
[1768857234774,0.010743,93128.0,93122.0,0.07668077]
[1768857234976,0.010743,93128.0,93120.0,0.07668077]
[1768857235369,0.010743,93128.0,93122.0,0.07668077]
[1768857235570,0.010743,93128.0,93120.0,0.07668077]
[1768857235776,0.010743,93128.0,93117.0,0.09672]
[1768857236073,0.010743,93128.0,93121.0,0.07668077]
[1768857236480,0.010744,93126.0,93117.0,0.09672]
[1768857238682,0.00838257,93126.0,93117.0,0.09672]
[1768857238885,0.010743,93129.0,93117.0,0.09672]
[1768857239276,0.09032948,93132.0,93117.0,0.09672]
[1768857239479,0.010743,93127.0,93117.0,0.09672]
[1768857241986,0.09032948,93132.0,93117.0,0.09672]
[1768857242188,4e-05,97700.0,93118.0,0.00988015]
[1768857242189,0.09032948,93137.0,93118.0,0.00988015]
[1768857242383,0.09032948,93135.0,93118.0,0.00988015]
[1768857243293,0.09032948,93132.0,93117.0,0.09672]
[1768857243698,0.010744,93126.0,93117.0,0.09672]
[1768857244500,0.09032948,93132.0,93117.0,0.09672]
[1768857244890,0.010743,93129.0,93117.0,0.09672]
[1768857245098,0.010744,93127.0,93117.0,0.09672]
[1768857245299,0.09032948,93132.0,93117.0,0.09672]
[1768857245690,0.010744,93126.0,93117.0,0.09672]
[1768857246203,0.010743,93128.0,93117.0,0.09672]
[1768857247986,0.010743,93128.0,93117.0,0.10660015]
[1768857248196,0.010743,93127.0,93117.0,0.10660015]
[1768857249493,0.010743,93130.0,93117.0,0.10660015]
[1768857249703,0.010743,93128.0,93117.0,0.10660015]
[1768857250900,0.10107148,93140.0,93118.0,0.07092682]
[1768857251096,0.010742,93137.0,93120.0,0.00988015]
[1768857251394,0.010743,93134.0,93120.0,0.00988015]
[1768857251601,0.010743,93133.0,93120.0,0.00988015]
[1768857252602,0.09032948,93137.0,93120.0,0.00988015]
[1768857253403,0.010743,93132.0,93120.0,0.00988015]
[1768857254804,0.010743,93132.0,93124.0,0.00236244]
[1768857259107,0.010743,93132.0,93125.0,0.09672]
[1768857260306,0.02574208,93131.0,93125.0,0.09672]
[1768857260509,0.010743,93132.0,93125.0,0.09672]
[1768857260805,0.02574208,93131.0,93125.0,0.09672]
[1768857261005,0.010743,93132.0,93125.0,0.09672]
[1768857261196,0.02574208,93131.0,93125.0,0.09672]
[1768857261396,0.010743,93132.0,93125.0,0.09672]
[1768857261606,0.02574192,93131.0,93129.0,3.3e-07]
[1768857261906,0.010743,93132.0,93130.0,0.122905]
[1768857262094,0.02574192,93131.0,93129.0,3.3e-07]
[1768857262298,0.010743,93132.0,93130.0,0.96592]
[1768857262598,0.02560423,93131.0,93129.0,3.3e-07]
[1768857262800,0.00838107,93132.0,93130.0,0.9658]
[1768857262997,0.02549368,93131.0,93130.0,0.9658]
[1768857268813,0.02549867,93131.0,93130.0,0.9658]
[1768857271815,0.09032948,93137.0,93130.0,0.9658]
[1768857272120,0.02550012,93136.0,93130.0,0.9658]
[1768857272317,0.09032948,93137.0,93130.0,0.9658]
[1768857272318,0.02550012,93135.0,93130.0,0.9658]
[1768857272509,0.02550012,93134.0,93130.0,0.9658]
[1768857272807,0.02550012,93133.0,93130.0,0.9658]
[1768857273008,0.02550012,93132.0,93130.0,0.9658]